bitfinex/quotes_ETHUSD_20251120
["timestamp","ask_amount","ask_price","bid_price","bid_amount"]
[1763651785310,0.405504,2974.7,2973.1,0.38171058]
[1763651785468,0.405504,2974.4,2972.4,0.4535]
[1763651785676,1.31249664,2974.0,2972.1,0.001]
[1763651785977,0.405504,2973.4,2972.1,0.001]
[1763651786301,0.405504,2973.1,2972.1,0.001]
[1763651786478,0.405504,2973.2,2972.1,0.001]
[1763651786686,0.405504,2972.9,2972.1,0.001]
[1763651786987,0.119,2972.8,2972.1,0.001]
[1763651787192,0.6158,2972.8,2972.1,0.001]
[1763651787370,6.72789046,2972.7,2972.1,0.001]
[1763651787569,0.119,2972.8,2972.1,0.001]
[1763651787765,3.48283963,2972.8,2972.1,0.001]
[1763651787980,6.84667926,2972.8,2972.1,0.001]
[1763651788504,7.50654459,2972.8,2972.1,0.001]
[1763651788693,7.34347926,2972.8,2972.1,0.001]
[1763651789706,0.4974,2972.7,2972.1,0.001]
[1763651790205,6.84667926,2972.8,2972.1,0.001]
[1763651790406,3.48283963,2972.8,2972.1,0.001]
[1763651790605,0.119,2972.8,2972.1,0.473]
[1763651790774,0.119,2972.8,2972.1,0.001]
[1763651790975,3.482834,2972.8,2972.1,0.001]
[1763651791172,0.119,2972.8,2972.1,0.001]
[1763651791505,6.84680236,2972.8,2972.1,0.001]
[1763651791884,1.40439264,2972.7,2972.1,0.001]
[1763651792091,0.405504,2972.6,2972.1,0.001]
[1763651792285,0.4974,2972.5,2972.1,0.001]
[1763651792910,0.90699264,2972.7,2972.1,0.001]
[1763651793620,3.8614584,2972.6,2972.1,0.001]
[1763651793818,0.90699264,2972.5,2972.1,0.001]
[1763651794026,1.40439264,2972.5,2972.1,0.001]
[1763651794176,0.902904,2972.4,2971.9,0.001]
[1763651794373,0.405504,2972.1,2971.9,0.001]
[1763651794801,0.902904,2972.0,2971.9,0.001]
[1763651795606,5.17463419,2972.0,2971.9,0.001]
[1763651796009,0.405504,2971.8,2970.1,3.36689]
[1763651796210,0.90699264,2971.9,2970.1,6.73378]
[1763651796211,0.405504,2971.6,2970.1,6.73378]
[1763651796412,0.405504,2971.6,2970.1,3.83889]
[1763651796625,0.902904,2971.6,2970.2,0.472]
[1763651797024,0.4974,2971.5,2970.2,0.472]
[1763651797440,0.4974,2971.5,2970.2,1.21196861]
[1763651797651,0.90699264,2971.3,2970.3,3.3666633]
[1763651797962,0.119,2971.2,2970.4,0.50566549]
[1763651798124,0.1122,2972.7,2971.2,0.1928]
[1763651798440,0.119,2972.6,2971.2,0.1928]
[1763651798639,0.119,2973.4,2972.6,0.1858]
[1763651798839,0.93116919,2973.4,2971.3,1.353245]
[1763651799041,1.83816183,2973.4,2971.4,0.5742]
[1763651799243,1.83816183,2973.4,2971.4,0.4552]
[1763651799441,0.119,2973.4,2971.6,5.98874199]
[1763651799617,3.3632664,2973.3,2971.7,10.09523166]
[1763651799818,3.48225757,2973.4,2971.7,10.09523166]
[1763651799819,0.119,2973.4,2971.8,0.4552]
[1763651800018,0.119,2973.4,2972.1,5.98874199]
[1763651800338,3.36190956,2974.5,2973.3,0.1858]
[1763651800537,0.119,2974.4,2973.3,0.1858]
[1763651800893,1.02599264,2974.4,2973.3,0.1858]
[1763651801142,0.1895,2974.3,2973.0,0.4552]
[1763651801449,0.119,2974.4,2973.0,0.4552]
[1763651801837,0.119,2974.4,2973.1,19.44271259]
[1763651802040,0.119,2974.4,2973.2,3.3519839]
[1763651802361,3.36327392,2975.1,2974.3,0.1858]
[1763651802653,0.119,2974.8,2973.4,0.90699264]
[1763651802809,0.119,2974.8,2973.5,0.641]
[1763651803146,0.119,2974.8,2973.6,0.4552]
[1763651803438,0.002,2974.4,2973.6,0.4552]
[1763651803737,0.119,2974.3,2973.7,10.088442]
[1763651803930,0.002,2974.4,2973.7,10.088442]
[1763651803931,0.002,2974.4,2973.8,1.0543642]
[1763651804126,0.002,2974.4,2973.9,0.4552]
[1763651804325,0.002,2974.4,2973.7,6.725628]
[1763651804538,0.002,2974.4,2973.8,0.4552]
[1763651805659,0.002,2974.4,2973.7,3.362814]
[1763651805942,0.1895,2974.3,2973.0,3.36360578]
[1763651806108,0.1895,2974.3,2973.1,0.40046058]
[1763651806308,0.1895,2974.3,2973.1,0.4552]
[1763651806509,0.002,2974.4,2973.1,0.4552]
[1763651806806,0.1895,2974.3,2973.1,0.4552]
[1763651807006,0.1895,2974.3,2973.0,3.36360578]
[1763651807240,0.1895,2974.3,2973.1,0.4552]
[1763651807644,0.002,2974.4,2973.1,1.19202116]
[1763651807822,6.72604518,2974.4,2973.2,6.72675904]
[1763651808019,0.1895,2974.3,2973.2,6.72675904]
[1763651808220,0.1895,2974.3,2973.2,7.18195904]
[1763651808221,0.1887,2974.3,2973.2,7.18195904]
[1763651808425,3.36402259,2974.4,2973.3,0.4552]
[1763651808821,0.6458,2974.3,2972.9,0.1858]
[1763651809021,0.119,2974.2,2972.9,3.36367083]
[1763651809226,0.4563,2974.1,2972.5,6.9141026]
[1763651809687,0.4563,2974.1,2972.6,0.4552]
[1763651809949,10.08742434,2974.0,2972.6,0.4552]
[1763651810160,6.72494956,2974.0,2972.6,0.4552]
[1763651810453,7.18124956,2974.0,2972.6,0.4552]
[1763651810814,0.4563,2973.9,2972.5,6.91413792]
[1763651811014,0.4563,2973.9,2972.6,0.4552]
[1763651811841,6.72540184,2973.8,2972.7,3.36394523]
[1763651812061,0.119,2973.7,2972.5,0.1858]
[1763651812305,0.4563,2973.6,2972.2,3.36451096]
[1763651812459,1.48229264,2973.7,2972.6,0.4552]
[1763651812660,1.48229264,2973.7,2972.3,0.4552]
[1763651812874,1.48229264,2973.7,2972.4,1.05487332]
[1763651813267,1.48229264,2973.7,2972.5,0.4552]
[1763651813668,1.02599264,2973.7,2972.5,0.4552]
[1763651813985,3.36292709,2973.6,2972.6,6.7281168]
[1763651814187,6.72585418,2973.6,2972.6,6.7281168]
[1763651814500,6.72585418,2973.6,2972.6,4.18787741]
[1763651814707,0.119,2973.7,2972.7,0.4552]
[1763651815057,3.48181693,2973.7,2972.7,0.4552]
[1763651815311,7.30093386,2973.7,2972.5,3.36413671]
[1763651815459,0.4563,2973.6,2972.2,0.4552]
[1763651815799,0.405504,2973.5,2972.0,3.4997044]
[1763651816103,0.90699264,2973.3,2972.0,0.135]
[1763651816296,0.5753,2973.2,2972.0,6.86443251]
[1763651816475,0.5753,2973.2,2972.0,3.49969496]
[1763651816671,0.5753,2973.2,2971.2,4.57742469]
[1763651816672,0.4563,2973.1,2971.3,0.4552]
[1763651816889,0.4563,2973.1,2971.3,7.18626046]
[1763651817090,0.4563,2973.1,2971.4,0.73790605]
[1763651817397,0.4563,2973.1,2971.4,1.19310605]
[1763651817697,0.4063,2973.1,2971.4,1.19310605]
[1763651818086,1.31249664,2972.9,2971.4,0.73790605]
[1763651818294,1.31249664,2972.9,2971.3,3.36544043]
[1763651818597,0.1549,2972.8,2971.3,7.18617066]
[1763651818794,0.119,2972.7,2971.3,3.82064043]
[1763651819294,0.119,2972.7,2971.4,0.4552]
[1763651819480,0.119,2972.7,2971.5,0.71861707]
[1763651819891,0.119,2972.7,2971.6,0.4552]
[1763651820065,0.119,2972.6,2971.7,6.73015444]
[1763651820501,0.4563,2972.5,2971.5,0.71861707]
[1763651820685,0.4563,2972.5,2971.3,3.36551863]
[1763651821002,0.4063,2972.5,2971.3,10.09657909]
[1763651821161,0.119,2972.4,2970.7,4.26617635]
[1763651821358,0.405504,2972.3,2970.7,3.36615768]
[1763651821562,0.405504,2972.3,2970.8,0.67323857]
[1763651821761,1.31249664,2972.1,2970.4,0.1858]
[1763651822002,1.31249664,2971.9,2970.4,3.55232372]
[1763651822207,6.72789046,2972.7,2970.5,0.48886436]
[1763651822428,1.43149664,2972.6,2970.6,0.40411881]
[1763651822625,1.02599264,2972.6,2970.9,5.98179462]
[1763651822796,3.51877201,2972.8,2971.0,0.90699264]
[1763651822985,6.72449734,2974.2,2971.5,0.90699264]
[1763651823325,0.4563,2973.9,2971.9,5.98179462]
[1763651823550,0.119,2974.1,2972.4,5.98179462]
[1763651823695,1.02599264,2974.1,2972.5,0.641]
[1763651823902,1.02599264,2974.1,2972.5,0.76]
[1763651824120,7.18124956,2974.0,2972.6,7.1833168]
[1763651824297,7.18124956,2974.0,2972.6,3.3640584]
[1763651824629,1.46819264,2973.9,2972.4,0.4552]
[1763651824817,1.46819264,2973.9,2972.3,6.91450777]
[1763651824818,1.46819264,2973.9,2972.5,0.4552]
[1763651825119,0.4563,2973.8,2972.5,0.4552]
[1763651825322,0.4563,2973.8,2972.3,6.91450777]
[1763651825525,0.4563,2973.8,2972.3,3.36430983]
[1763651825722,0.4563,2973.8,2972.2,3.36449625]
[1763651825723,0.405504,2973.7,2972.0,0.59817946]
[1763651825921,0.4563,2973.8,2971.5,4.26623618]
[1763651825922,1.31249664,2973.5,2971.5,0.001]
[1763651826233,1.31249664,2973.1,2971.5,0.001]
[1763651826528,0.405504,2972.9,2971.5,0.001]
[1763651826728,0.119,2973.0,2971.5,0.001]
[1763651826729,0.119,2973.0,2971.5,0.03465303]
[1763651827033,0.90699264,2973.3,2971.6,1.13174826]
[1763651827034,0.119,2972.9,2971.6,1.13174826]
[1763651827342,0.119,2972.9,2971.7,0.4552]
[1763651827542,0.5753,2972.9,2971.7,0.4552]
[1763651827761,0.5753,2972.9,2971.6,0.67654826]
[1763651828039,0.119,2972.9,2971.7,0.4552]
[1763651828359,7.20656414,2972.8,2971.7,3.36505855]
[1763651828554,3.36383207,2972.8,2971.7,7.60789645]
[1763651828721,6.72766414,2972.8,2971.7,7.60789645]
[1763651828920,3.48276218,2972.9,2971.7,7.60789645]
[1763651829110,0.119,2972.9,2971.8,0.4735]
[1763651829461,0.119,2972.9,2971.9,7.07909199]
[1763651829660,0.1049,2973.9,2972.8,0.1923]
[1763651829807,0.5979,2973.8,2972.1,6.01544086]
[1763651830013,0.119,2973.8,2972.2,0.90001867]
[1763651830210,3.362814,2973.7,2972.4,6.7285695]
[1763651830408,6.725628,2973.7,2972.4,6.7285695]
[1763651830652,6.725628,2973.7,2972.5,0.4735]
[1763651831007,3.96062647,2973.8,2972.5,0.4735]
[1763651831209,6.84445294,2973.8,2972.5,0.4735]
[1763651831411,1.38589264,2973.7,2972.4,6.7285695]
[1763651831610,1.38589264,2973.7,2972.5,0.4735]
[1763651831810,1.38589264,2973.7,2972.4,6.7285695]
[1763651832207,3.36292709,2973.6,2972.5,0.4735]
[1763651832441,3.48170092,2973.8,2972.5,0.4735]
[1763651832649,0.1915,2974.3,2972.6,1.17563543]
[1763651832847,0.002,2974.3,2973.0,5.98179462]
[1763651833055,3.58114752,2974.3,2972.9,0.90001867]
[1763651833253,0.219,2974.3,2973.0,0.4735]
[1763651833413,0.219,2974.3,2973.0,1.37351867]
[1763651833612,0.219,2974.3,2973.0,0.5925]
[1763651833846,0.121,2974.3,2973.1,0.4735]
[1763651834048,0.121,2974.3,2973.1,7.35531329]
[1763651834366,0.002,2974.3,2974.2,3.55454867]
[1763651834649,0.002,2974.3,2974.2,4.02804867]
[1763651835096,0.002,2974.3,2974.2,3.55454867]
[1763651835263,0.002,2974.3,2974.1,3.3623413]
[1763651835585,0.002,2974.3,2974.1,3.69857543]
[1763651835788,0.002,2974.3,2973.6,1.79426591]
[1763651835789,0.119,2974.2,2973.2,1.20903133]
[1763651836000,0.119,2974.2,2972.8,1.09231867]
[1763651836213,0.119,2974.2,2972.4,0.90001867]
[1763651836214,0.90699264,2973.8,2972.4,0.90001867]
[1763651836492,0.119,2973.7,2972.4,6.7285695]
[1763651836852,0.119,2973.7,2972.5,1.38049264]
[1763651837165,0.119,2973.7,2972.5,0.4735]
[1763651837357,0.119,2973.7,2972.4,7.62858817]
[1763651837358,0.119,2973.7,2972.4,6.7285695]
[1763651837560,0.4789,2973.6,2972.2,0.90001867]
[1763651837762,0.4789,2973.6,2972.1,6.72924678]
[1763651837979,0.4789,2973.6,2972.0,0.4735]
[1763651837980,0.405504,2973.5,2972.2,0.25718318]
[1763651838188,0.405504,2973.5,2972.0,3.83817582]
[1763651838389,1.31249664,2973.3,2971.6,0.90001867]
[1763651838704,1.31249664,2973.3,2971.5,3.36628734]
[1763651838899,0.6708,2973.2,2971.5,3.36628689]
[1763651839054,0.6708,2973.2,2971.6,0.81012869]
[1763651839055,0.524504,2973.1,2971.6,0.81012869]
[1763651839256,0.405504,2972.9,2971.5,0.001]
[1763651839450,1.003404,2973.1,2971.5,0.001]
[1763651839451,0.405504,2973.0,2971.5,0.001]
[1763651839660,1.31249664,2972.6,2971.5,0.001]
[1763651839863,0.405504,2972.4,2971.5,0.001]
[1763651840097,0.405504,2972.2,2971.5,0.001]
[1763651840302,0.405504,2972.0,2971.5,0.001]
[1763651840597,0.405504,2972.0,2970.0,0.1923]
[1763651840598,1.31249664,2971.6,2970.0,3.55930163]
[1763651840749,0.119,2971.5,2970.0,3.93446179]
[1763651840953,0.5979,2971.5,2970.0,3.74216179]
[1763651841149,0.5979,2971.5,2969.2,0.90001867]
[1763651841150,0.405504,2971.4,2969.2,0.90001867]
[1763651841459,1.31249664,2971.2,2968.9,0.1923]
[1763651841687,1.31249664,2971.0,2969.0,3.36804081]
[1763651841993,0.405504,2970.6,2969.0,3.36804081]
[1763651842284,1.31249664,2970.4,2968.9,3.56054407]
[1763651842514,0.119,2970.3,2969.0,0.69287981]
[1763651842710,0.119,2970.3,2968.6,0.4735]
[1763651842711,0.405504,2970.2,2968.6,0.4735]
[1763651842915,0.0956,2968.7,2967.7,0.90001867]
[1763651843090,0.119,2968.6,2967.2,3.37018064]
[1763651843292,0.405504,2968.5,2967.3,0.38436806]
[1763651843493,0.405504,2968.5,2966.8,3.37063502]
[1763651843704,1.31249664,2968.3,2966.6,0.4735]
[1763651843913,1.31249664,2968.3,2966.0,1.44823718]
[1763651843914,0.90699264,2968.1,2966.2,0.1923]
[1763651844116,0.405504,2968.0,2966.2,0.1923]
[1763651844417,3.84786627,2968.3,2966.4,5.98179462]
[1763651844735,0.405504,2968.5,2966.4,5.98179462]
[1763651844736,0.119,2968.2,2966.5,3.07446401]
[1763651844879,0.119,2968.2,2966.6,0.405504]
[1763651845080,0.119,2968.2,2966.6,0.4735]
[1763651845284,0.119,2968.1,2966.6,0.4735]
[1763651845591,0.4789,2968.2,2966.6,0.4735]
[1763651845778,0.119,2968.1,2967.0,5.98179462]
[1763651846018,0.119,2968.1,2967.1,0.59817946]
[1763651846176,0.119,2968.1,2967.1,0.4735]
[1763651846516,0.119,2968.0,2967.3,0.90699264]
[1763651846674,0.1919,2969.2,2967.3,0.90699264]
[1763651846876,0.119,2969.1,2967.6,0.90699264]
[1763651847213,0.119,2969.1,2967.7,0.4735]
[1763651847419,0.52823046,2968.9,2967.2,3.37018064]
[1763651847573,0.52823046,2968.9,2967.4,0.4735]
[1763651847777,6.734687,2969.7,2967.4,0.4735]
[1763651847778,0.119,2969.0,2967.7,0.405504]
[1763651847984,0.119,2968.9,2967.3,0.35624806]
[1763651848189,0.119,2968.8,2967.4,1.567529]
[1763651848377,0.4789,2969.4,2967.4,1.567529]
[1763651848378,0.4789,2969.4,2967.6,0.405504]
[1763651848601,0.119,2969.3,2967.6,0.405504]
[1763651848924,0.119,2969.3,2967.4,4.46397477]
[1763651849223,0.119,2969.3,2967.2,3.37018064]
[1763651849224,0.4777,2969.2,2967.2,3.37018064]
[1763651849378,0.4777,2969.2,2967.2,6.74036128]
[1763651849581,0.405504,2968.9,2966.6,0.6498]
[1763651849810,0.405504,2968.9,2966.6,0.1961]
[1763651850023,0.405504,2968.9,2966.8,0.90699264]
[1763651850024,0.4777,2968.9,2966.8,0.90699264]
[1763651850207,0.4777,2968.9,2966.9,1.27383916]
[1763651850208,0.119,2968.8,2966.9,1.27383916]
[1763651850382,3.48737279,2968.8,2967.1,0.405504]
[1763651850584,0.4777,2969.3,2967.3,0.405504]
[1763651850897,3.36723865,2969.8,2967.8,1.31249664]
[1763651851096,0.119,2969.7,2967.8,1.31249664]
[1763651851280,0.119,2969.7,2967.9,1.30531556]
[1763651851281,1.50369264,2969.7,2967.9,1.30531556]
[1763651851484,0.4777,2969.7,2967.9,1.30531556]
[1763651851735,0.5967,2969.6,2968.0,0.4537]
[1763651851937,0.4777,2969.6,2968.0,0.4537]
[1763651852089,0.119,2969.5,2968.0,0.4537]
[1763651852286,0.4777,2969.8,2968.1,13.88213888]
[1763651852494,3.36585749,2971.1,2968.3,0.405504]
[1763651852495,0.119,2969.7,2968.3,0.405504]
[1763651852718,0.119,2969.7,2968.4,0.4537]
[1763651853637,3.55890602,2970.0,2968.4,0.4537]
[1763651853917,3.36620998,2970.7,2968.8,1.31249664]
[1763651854121,1.02599264,2970.6,2968.8,1.31249664]
[1763651854318,6.73287324,2970.5,2969.0,6.73627484]
[1763651854485,0.4777,2970.4,2969.0,6.73627484]
[1763651854682,3.36621114,2970.7,2969.2,0.405504]
[1763651854918,0.4777,2971.4,2969.2,7.609163]
[1763651855083,0.4777,2971.4,2969.4,0.405504]
[1763651855084,0.119,2971.1,2969.4,0.405504]
[1763651855297,0.4777,2971.0,2969.5,0.63031966]
[1763651855721,3.55757311,2971.2,2969.6,0.4537]
[1763651856027,0.4777,2972.0,2970.2,7.203659]
[1763651856230,0.1919,2972.6,2970.3,1.94429664]
[1763651856528,0.1836,2973.0,2971.3,0.90699264]
[1763651856737,0.119,2972.7,2972.1,0.1961]
[1763651857093,0.119,2972.7,2971.8,0.1961]
[1763651857720,0.002,2972.9,2971.9,0.4537]
[1763651857917,0.119,2972.8,2971.9,0.4537]
[1763651858225,0.119,2972.8,2971.8,0.1961]
[1763651858528,3.36572924,2972.9,2971.8,0.1961]
[1763651858529,0.121,2972.9,2971.9,10.58135228]
[1763651858737,0.121,2972.9,2971.9,7.21650152]
[1763651858888,3.36383207,2972.8,2971.9,0.4868]
[1763651859492,6.72766414,2972.8,2971.8,3.56104288]
[1763651859690,6.72766414,2972.8,2971.5,3.36530371]
[1763651859886,10.57279621,2972.8,2971.5,3.36530371]
[1763651860139,3.644977,2972.6,2970.3,0.6649]
[1763651860306,6.73060742,2971.5,2970.4,3.36651434]
[1763651860491,0.119,2971.4,2970.4,6.73306429]
[1763651860691,0.662,2972.4,2970.5,0.4868]
[1763651860892,0.90699264,2972.2,2970.5,0.4868]
[1763651861297,1.38829264,2972.2,2970.5,0.4868]
[1763651861517,0.4813,2972.1,2970.5,0.4868]
[1763651861731,0.4813,2972.1,2970.6,0.72198643]
[1763651862030,0.4813,2972.1,2970.5,0.4868]
[1763651862398,0.90699264,2971.9,2970.6,6.7326466]
[1763651862592,0.4813,2972.1,2970.6,10.0989699]
[1763651862593,0.90699264,2972.1,2970.6,10.0989699]
[1763651862843,0.90699264,2972.1,2970.7,0.4868]
[1763651862998,0.119,2972.0,2970.7,0.4868]
[1763651863201,0.119,2972.0,2970.8,1.39520932]
[1763651863692,0.119,2972.0,2970.9,0.4868]
[1763651864343,3.36485076,2971.9,2970.9,0.4868]
[1763651864495,6.72970152,2971.9,2970.9,3.36596799]
[1763651864696,0.4813,2971.8,2970.5,3.3673998]
[1763651865004,0.4813,2971.8,2970.5,3.77062978]
[1763651865199,0.4813,2971.8,2970.5,7.1370664]
[1763651865827,0.4813,2971.8,2970.5,3.77062978]
[1763651866209,6.72970152,2971.9,2970.6,0.4868]
[1763651866408,3.36519046,2971.6,2970.7,3.36620998]
[1763651866598,0.119,2971.5,2970.7,3.36620998]
[1763651866998,0.4813,2972.1,2970.8,0.4868]
[1763651867308,0.52776426,2972.6,2970.8,8.59745164]
[1763651867509,3.48317157,2972.5,2970.9,0.4868]
[1763651867834,0.119,2972.4,2971.0,0.85974516]
[1763651868206,0.4813,2972.3,2970.9,0.4868]
[1763651868408,10.09353339,2972.2,2970.9,0.4868]
[1763651868650,10.09353339,2972.2,2970.7,6.73241996]
[1763651868828,0.6151,2972.1,2970.7,6.73241996]
[1763651868995,0.6151,2972.1,2970.7,3.36620998]
[1763651869333,0.4813,2972.0,2970.6,3.3663233]
[1763651869538,0.119,2971.9,2970.6,6.7326466]
[1763651869720,0.4813,2972.0,2970.7,0.4868]
[1763651869926,0.119,2971.9,2970.7,0.4868]
[1763651870233,0.119,2971.9,2970.7,1.54548525]
[1763651870433,6.72992798,2971.8,2970.7,1.54548525]
[1763651870599,3.36490592,2971.9,2970.7,10.58537691]
[1763651870809,0.119,2971.8,2970.8,0.4868]
[1763651871100,0.4813,2972.5,2970.8,0.4868]
[1763651871299,3.48328475,2972.4,2970.8,0.4868]
[1763651871554,0.119,2972.4,2970.9,0.405504]
[1763651871715,0.119,2972.4,2971.0,0.17992966]
[1763651871902,0.119,2972.4,2971.2,0.405504]
[1763651872303,0.119,2972.4,2971.3,0.6751]
[1763651872526,0.119,2972.4,2971.4,10.09625091]
[1763651872871,0.119,2972.4,2971.4,10.58305091]
[1763651873158,0.119,2972.4,2971.5,1.56393509]
[1763651873360,0.119,2972.4,2971.6,0.4868]
[1763651874355,0.002,2972.9,2972.3,0.1883]
[1763651874546,0.002,2972.9,2972.5,6.72834314]
[1763651875057,0.002,2972.9,2972.6,0.4868]
[1763651875237,0.002,2972.9,2972.7,1.05793147]
[1763651875622,0.002,2972.9,2972.8,0.4868]
[1763651876645,0.002,2972.9,2972.8,5.16312871]
[1763651876840,0.002,2973.2,2972.9,1.31249664]
[1763651877041,0.002,2973.2,2972.9,1.79929664]
[1763651877242,0.121,2974.3,2973.3,0.90699264]
[1763651877243,0.002,2974.3,2973.3,0.90699264]
[1763651877444,0.002,2975.2,2974.0,5.37029664]
[1763651877747,0.002,2975.2,2974.6,7.391959]
[1763651878126,0.002,2975.2,2974.7,1.011304]
[1763651878329,0.002,2975.5,2975.1,7.203659]
[1763651878648,0.002,2975.5,2975.3,3.36100561]
[1763651879026,0.002,2975.5,2975.4,0.4868]
[1763651879565,0.002,2975.5,2975.4,0.892304]
[1763651879765,0.002,2975.5,2975.4,1.011304]
[1763651880068,0.002,2975.5,2975.4,1.91829664]
[1763651880238,0.0012,2975.5,2975.2,3.36101268]
[1763651880633,0.0012,2975.5,2974.9,10.08437256]
[1763651880867,0.0012,2975.5,2975.0,0.119]
[1763651881080,0.0012,2975.5,2974.7,3.36164751]
[1763651881388,0.1807,2975.4,2974.2,0.1883]
[1763651881530,0.0012,2975.5,2974.2,10.39401078]
[1763651881893,0.0012,2975.5,2975.4,0.90699264]
[1763651882045,0.002,2977.7,2975.8,0.405504]
[1763651882230,0.002,2977.7,2976.0,1.31249664]
[1763651882430,0.002,2977.7,2976.2,0.405504]
[1763651882664,0.002,2977.7,2976.5,6.71930118]
[1763651882968,0.002,2977.7,2976.7,0.405504]
[1763651883166,0.002,2977.7,2977.0,1.31249664]
[1763651883339,0.002,2977.7,2977.3,0.593804]
[1763651883539,0.002,2977.7,2976.8,0.1883]
[1763651883753,0.4813,2977.5,2976.5,3.35965059]
[1763651883979,0.002,2977.7,2976.6,0.524504]
[1763651884131,0.002,2977.7,2976.6,0.892304]
[1763651884337,0.002,2977.7,2976.7,0.4868]
[1763651884656,0.002,2977.7,2977.3,3.54704785]
[1763651884860,0.002,2977.7,2977.3,3.66604785]
[1763651885073,0.002,2977.7,2976.6,6.71907544]
[1763651885275,0.002,2977.7,2976.6,3.35953772]
[1763651885594,0.002,2977.7,2976.7,1.79929664]
[1763651885746,0.002,2977.7,2977.0,1.31249664]
[1763651885942,0.002,2977.7,2977.1,0.6058]
[1763651886155,0.002,2977.7,2977.2,0.524504]
[1763651886357,0.002,2977.7,2977.3,0.892304]
[1763651886586,0.002,2977.7,2977.3,5.27704449]
[1763651886897,0.002,2978.0,2977.4,10.91276964]
[1763651887102,0.1807,2980.5,2978.6,1.31249664]
[1763651887393,0.1807,2980.5,2978.5,7.794863]
[1763651887394,0.1807,2980.5,2979.5,7.203659]
[1763651887604,0.104,2981.6,2979.6,0.405504]
[1763651887894,0.104,2981.6,2980.1,0.405504]
[1763651888102,0.5853,2981.6,2980.1,0.405504]
[1763651888309,0.4813,2981.6,2980.3,0.405504]
[1763651888520,0.002,2981.7,2980.3,0.405504]
[1763651888521,0.002,2981.7,2980.6,1.31249664]
[1763651888661,0.002,2981.7,2981.3,0.405504]
[1763651888854,0.002,2981.7,2981.2,6.7087079]
[1763651889208,0.002,2981.7,2981.6,0.405504]
[1763651889360,0.002,2981.7,2981.6,1.92979664]
[1763651889554,0.002,2982.6,2981.8,1.31249664]
[1763651889786,0.002,2982.6,2982.2,8.71165564]
[1763651889954,0.002,2982.6,2982.2,10.14543473]
[1763651890155,0.002,2982.6,2982.2,2.00629664]
[1763651890355,0.002,2982.6,2982.2,2.12529664]
[1763651890792,0.002,2982.6,2981.8,1.49055933]
[1763651890998,0.002,2982.6,2981.9,0.405504]
[1763651891230,0.002,2982.6,2981.9,1.81079664]
[1763651891487,0.002,2982.6,2982.2,8.51615564]
[1763651891691,3.53299104,2985.2,2982.3,1.31249664]
[1763651891692,0.4852,2984.8,2982.3,1.31249664]
[1763651891896,0.1831,2985.2,2983.7,0.405504]
[1763651892101,0.4872,2985.0,2983.8,0.118]
[1763651892298,0.002,2985.0,2983.9,0.118]
[1763651892502,0.002,2985.0,2983.8,0.4983]
[1763651892503,3.83728969,2985.0,2984.0,0.118]
[1763651892727,3.83728969,2985.0,2983.5,0.1955]
[1763651892728,0.90699264,2984.9,2982.8,0.4983]
[1763651893013,0.1453,2983.9,2982.8,3.35254601]
[1763651893304,1.51019264,2984.9,2982.9,0.405504]
[1763651893305,0.4852,2984.8,2982.9,0.405504]
[1763651893486,10.05226907,2985.0,2982.9,0.405504]
[1763651893487,0.002,2985.0,2983.4,7.203659]
[1763651893686,0.002,2985.0,2983.6,0.405504]
[1763651893876,0.002,2985.0,2983.1,6.058691]
[1763651893877,0.002,2985.0,2984.5,7.203659]
[1763651894280,0.002,2985.0,2984.2,0.903804]
[1763651894485,0.002,2985.0,2983.7,0.1955]
[1763651894696,0.002,2985.0,2983.5,7.203659]
[1763651894697,0.90699264,2984.9,2983.5,0.405504]
[1763651894894,0.90699264,2984.9,2983.2,0.118]
[1763651894895,0.90699264,2984.9,2982.7,0.1955]
[1763651895111,0.4852,2984.8,2982.8,0.118]
[1763651895389,0.4852,2984.8,2983.4,0.405504]
[1763651895574,0.1453,2984.7,2983.0,0.118]
[1763651895771,0.1453,2984.7,2982.7,14.10446451]
[1763651895772,0.1453,2984.7,2982.7,3.54813847]
[1763651895997,0.1453,2984.7,2982.3,0.4983]
[1763651895998,0.4852,2984.6,2982.6,0.118]
[1763651896302,0.4852,2984.6,2983.2,7.203659]
[1763651896492,0.1453,2984.7,2983.3,0.90699264]
[1763651896688,3.49573333,2984.7,2983.4,0.405504]
[1763651896893,3.49573333,2984.7,2983.3,0.90699264]
[1763651896894,0.4852,2984.6,2983.3,0.90699264]
[1763651897077,3.83573273,2984.6,2983.3,0.90699264]
[1763651897283,7.18626546,2984.6,2982.7,7.203659]
[1763651897510,7.18626546,2984.6,2982.5,0.4983]
[1763651897511,1.39219264,2984.5,2982.5,0.4983]
[1763651897683,1.39219264,2984.5,2982.2,7.203659]
[1763651897684,1.39219264,2984.5,2982.3,0.118]
[1763651897889,1.39219264,2984.5,2982.6,0.4983]
[1763651898110,0.4852,2984.4,2982.7,0.118]
[1763651898416,0.118,2984.3,2982.7,0.118]
[1763651898743,3.35098183,2984.2,2983.0,0.90699264]
[1763651898911,0.90699264,2984.1,2981.9,10.06069953]
[1763651899209,0.90699264,2984.1,2981.8,0.6938]
[1763651899210,0.405504,2984.0,2981.8,3.35364515]
[1763651899414,0.890704,2984.0,2981.9,0.90699264]
[1763651899707,0.890704,2984.0,2981.2,4.02515458]
[1763651899708,8.889973,2983.6,2981.2,4.02514208]
[1763651899919,1.31249664,2983.3,2980.9,0.118]
[1763651900072,0.405504,2983.1,2980.9,0.90699264]
[1763651900273,0.405504,2983.1,2980.8,6.70960814]
[1763651900476,7.746222,2982.8,2980.3,7.203659]
[1763651900834,0.90699264,2982.3,2980.6,0.90699264]
[1763651901121,0.118,2982.2,2980.7,0.8118]